{"text_format":"1","workbook":"xlsx","n_sheets":11,"sheets":["شرح الكود","اليومية العامه","المبيعات القسط","فرع 1","فرع 2","فرع 3","فرع 4","فرع 5","فرع 6","فرع 7","تقرير الاقساط"],"not_rendered":{"charts":0,"images":0,"macros":1,"external_links":1,"defined_names":3,"comments":0,"pivot_tables":0},"unopened":[],"bounds":{"document_bytes":16777216,"sheet_cells":100000,"rows_first":2000,"rows_last":500,"rows_between":2000,"halvings":0,"cell_chars":16384,"cell_head_chars":4096},"cells_cut":0,"cells_raw":0,"read":"whole","date_system":"1900"}

{"sheet":"شرح الكود","index":0,"n_rows":41,"n_cols":4,"rows_kept":41,"cut":false,"hidden":false,"merged":[]}
[null,"الكود الأول :  ترحيل الأكبر من صفر"]
[null,"Sub tarheel_grater_than_zero()",null,"بداية الكود"]
[null,"Application.ScreenUpdating = False",null,"إيقاف تشغيل تحديثات الشاشة ، بغرض تسريع عمل الكود"]
[null,"LR = [O9999].End(xlUp).Row",null,"إذهب للخلية O999 ثم للأعلي حتي إيجاد بيانات لحساب رقم آخر صف به بيانات Last Row"]
[null,"Sheets(\"المبيعات القسط\").[B6:DN9999].ClearContents",null,"إحذف محتويات النطاق B6:DN9999 بالورقة \"المبيعات القسط\""]
[null,"nr = 6",null,"إعطي القيمة 6 للمتغير nr ، صف جديد new row"]
[null,"For r = 4 To LR",null,"حلقة  r  من 4 إلي آخر سطر LR"]
[null,"    If Cells(r, \"O\") > 0 Then",null,"شرط إذا كانت الخلية بالعمود O أكبر من 0 فلتنفذ التالي"]
[null,"        Range(\"B\" & r & \":H\" & r).Copy",null,"إنسخ النطاق B:H في نفس الصف"]
[null,"            Sheets(\"المبيعات القسط\").Cells(nr, 2).PasteSpecial Paste:=xlPasteValues",null,"إلصق قيم فقط بورقة \"المبيعات القسط\" من العمود الثاني B للصف nr"]
[null,"        Cells(r, \"J\").Copy",null,"إنسخ الخلية بالعمود J في نفس الصف"]
[null,"            Sheets(\"المبيعات القسط\").Cells(nr, \"J\").PasteSpecial Paste:=xlPasteValues",null,"إلصق قيم فقط بورقة \"المبيعات القسط\" من العمود J "]
[null,"        Range(\"L\" & r & \":O\" & r).Copy",null,"إنسخ النطاق L:O في نفس الصف"]
[null,"            Sheets(\"المبيعات القسط\").Cells(nr, \"K\").PasteSpecial Paste:=xlPasteValues",null,"إلصق قيم فقط بورقة \"المبيعات القسط\" من العمود K للصف nr"]
[null,"        nr = nr + 1",null,"زود قيمة nr بمقدار 1"]
[null,"    End If",null,"نهاية الشرط ، لن يتم عمل الأوامر السابقة إلا إذا تحقق الشرط أي القيمة > 0"]
[null,"Next r",null,"متابعة حلقة r"]
[null,"Application.CutCopyMode = False",null,"إطفاء وميض النسخ / القطع"]
[null,"Application.ScreenUpdating = True",null,"إعادة تشغيل تحديثات الشاشة"]
[null,"End Sub",null,"نهاية الكود"]
[]
[null,"الكود الثاني :  ترحيل للفروع"]
[null,"Sub tarheel_branches()",null,"بداية الكود"]
[null,"Application.ScreenUpdating = False",null,"إيقاف تشغيل تحديثات الشاشة ، بغرض تسريع عمل الكود"]
[null,"LR = [O9999].End(xlUp).Row",null,"إذهب للخلية O999 ثم للأعلي حتي إيجاد بيانات لحساب رقم آخر صف به بيانات"]
[null,"    For r = 4 To LR",null,"حلقة  r"]
[null,"        nm = Cells(r, \"C\")",null,"إعطي قيمة الخلية بالعمود C للمتغير nm ، إسم الفرع"]
[null,"        For i = 1 To Sheets.Count",null,"حلقة  i للمرور علي كافة شيتات الملف"]
[null,"            If Sheets(i).Name = nm Then",null,"شرط إذا كان إسم الورقة يساوي nm فلتنفذ التالي"]
[null,"                For j = 1 To 999",null,"بداية حلقة  j من 1:999"]
[null,"                    If IsEmpty(Sheets(i).[O5].Offset(j, 0)) = True Then nr = j + 5: GoTo 10",null,"إذا كانت الخلية التي أسفل O5 بمقدار i صفوف فارغة ، إذن إعطي قيمة للمتغير nr تساوي 5+j ثم إذهب للسطر 10"]
[]
[null,"                Next j",null,"متابعة حلقة  j"]
[null,"10       Range(\"B\" & r & \":AI\" & r).Copy",null,"السطر 10 :  إنسخ النطاق B:AI في نفس الصف"]
[null,"                Sheets(i).Cells(nr, 2).PasteSpecial Paste:=xlPasteValues",null,"إلصق قيم فقط بورقة \"المبيعات القسط\" من العمود الثاني B للصف nr"]
[null,"            End If",null,"نهاية الشرط ، لن يتم عمل الأوامر السابقة إلا إذا تحقق الشرط أي في الورقة التي بإسم الفرع"]
[null,"        Next i",null,"متابعة حلقة  i"]
[null,"    Next r",null,"متابعة حلقة r"]
[null,"Application.CutCopyMode = False",null,"إطفاء وميض النسخ / القطع"]
[null,"Application.ScreenUpdating = True",null,"إعادة تشغيل تحديثات الشاشة"]
[null,"End Sub",null,"نهاية الكود"]

{"sheet":"اليومية العامه","index":1,"n_rows":34,"n_cols":35,"rows_kept":34,"cut":false,"hidden":false,"merged":[[12,1,12,7],[13,1,13,7],[14,1,14,7],[16,1,16,7]]}
[]
[null,null,null,null,null,null,null,null,null,null,null,null,null,null,null,null,null,null,null,null,null,null,null,null,null,"عربون",null,null,null,null,"مرتجعات"]
[null,"التاريخ","الفرع","مستند التوريد","نوع المستند","ايصال تحصيل الفرع","كود العميل","اسم العميل","تصنيف الصنف","اسم الصنف","نظام البيع ","العدد","مبلغ التعاقد","المقدم ","الباقى","سعر الوحدة","فروقات وخصومات","بيانات الخصم","نوع العقد","رقم العقد","اسم البائع","اسم فنى التركيب","اسم القسم البائع","الشهر","ملاحظات","قيمة العربون","العدد2","نوع الجهاز","تاريخ التركيب","ملاحظات العربون","قيمة الارتجاع","العدد4","اسم الصنف المرتجع","تاريخ الارتجاع","ملاحظات المترجعات"]
[null,"2014-01-01","فرع 1",null,null,null,null,null,null,null,null,1,200,50,{"$f":"[مبلغ التعاقد]-[[المقدم ]]","v":150}]
[null,"2014-01-02","فرع 2",null,null,null,null,null,null,null,null,4,1000,300,{"$f":"[مبلغ التعاقد]-[[المقدم ]]","v":700}]
[null,null,"فرع 3",null,null,null,null,null,null,null,null,5,1000,1000,{"$f":"[مبلغ التعاقد]-[[المقدم ]]","v":0}]
[null,"2014-06-10","فرع 4",null,null,null,null,null,null,null,null,8,1250,500,{"$f":"[مبلغ التعاقد]-[[المقدم ]]","v":750}]
[null,"2014-06-10","فرع 5",null,null,null,null,null,null,null,null,7,333,33,{"$f":"[مبلغ التعاقد]-[[المقدم ]]","v":300}]
[]
[null,"جزاكم الله خير سيدى الحبيب الفاضل المكرم / طارق محمود "]
[]
[null," وظيفة هذه الصفحه انها ستكون يومية عامه وصفحة ادخال رئيسيه بها ومخزن بها كل البيانات "]
[null,"احتاج ان يرحل الصف كما هو مثلا الصف من b4: ak4 وان يرحل الى صفحة الفرع الخاص به \n ولا يرحل الصف الا مره واحده حتى لا يتكرر الترحيل ويكون هناك ازدواج لنفس الصف وبياناته عن الضغط على زر ترحيل "]
[null,"وهل يوجد حل لموضوع بطى الشيت عند الضغط على الترحيل لاننى قد اتجهت الى الاكواد هربا من ثقل المعادلات  "]
[null,"وطبعا يظل كل شىء مكتوب فى صفحة االيومية العامه كما هو"]
[]
[null,"ولى طلب اخر فى صفحة تقرير الاقساط واطلبه على استحياء "]
[]
[]
[]
[]
[]
[]
[]
[]
[]
[]
[]
[]
[]
[]
[]
[]
[null,null,null,null,null,null,null,null,null,null,null,null,null,null,null,null,null,null,null,null,null,null,"ا"]

{"sheet":"المبيعات القسط","index":2,"n_rows":21,"n_cols":144,"rows_kept":21,"cut":false,"hidden":false,"merged":[[2,116,2,125],[2,126,2,135],[30,8,30,14],[26,2,26,3],[28,2,28,3],[24,5,26,7],[2,16,2,25],[2,26,2,35],[2,36,2,45],[2,46,2,55],[2,56,2,65],[2,66,2,75],[2,76,2,85],[2,86,2,95],[2,96,2,105],[2,106,2,115]]}
[]
[]
[null,null,null,null,null,null,null,null,null,null,null,null,null,null,null,null,"القسط 1",null,null,null,null,null,null,null,null,null,"القسط 2",null,null,null,null,null,null,null,null,null,"القسط 3",null,null,null,null,null,null,null,null,null,"القسط 4",null,null,null,null,null,null,null,null,null,"القسط 5",null,null,null,null,null,null,null,null,null,"القسط 6",null,null,null,null,null,null,null,null,null,"القسط 7",null,null,null,null,null,null,null,null,null,"القسط 8",null,null,null,null,null,null,null,null,null,"القسط 9",null,null,null,null,null,null,null,null,null,"القسط 10",null,null,null,null,null,null,null,null,null,"القسط 11",null,null,null,null,null,null,null,null,null,"القسط 12"]
[]
[null,"التاريخ","الفرع","مستند التوريد","نوع المستند","ايصال تحصيل الفرع","كود العميل","اسم العميل","تصنيف الصنف","اسم الصنف","العدد","مبلغ التعاقد","المقدم ","الباقى","نوع العقد","رقم العقد","رقم القسط","القيمة المستحقه","تاريخ الاستحقاق","القيمة المحصله","تاريخ السداد","رقم وصل التحصيل","رقم وصل الرئيسى","اسم المحصل","رصيد القسط","رصيد العميل","رقم القسط","القيمة المستحقه","تاريخ الاستحقاق","القيمة المحصله","تاريخ السداد","رقم وصل التحصيل","رقم وصل الرئيسى","اسم المحصل","رصيد القسط","رصيد العميل","رقم القسط","القيمة المستحقه","تاريخ الاستحقاق","القيمة المحصله","تاريخ السداد","رقم وصل التحصيل","رقم وصل الرئيسى","اسم المحصل","رصيد القسط","رصيد العميل","رقم القسط","القيمة المستحقه","تاريخ الاستحقاق","القيمة المحصله","تاريخ السداد","رقم وصل التحصيل","رقم وصل الرئيسى","اسم المحصل","رصيد القسط","رصيد العميل","رقم القسط","القيمة المستحقه","تاريخ الاستحقاق","القيمة المحصله","تاريخ السداد","رقم وصل التحصيل","رقم وصل الرئيسى","اسم المحصل","رصيد القسط","رصيد العميل","رقم القسط","القيمة المستحقه","تاريخ الاستحقاق","القيمة المحصله","تاريخ السداد","رقم وصل التحصيل","رقم وصل الرئيسى","اسم المحصل","رصيد القسط","رصيد العميل","رقم القسط","القيمة المستحقه","تاريخ الاستحقاق","القيمة المحصله","تاريخ السداد","رقم وصل التحصيل","رقم وصل الرئيسى","اسم المحصل","رصيد القسط","رصيد العميل","رقم القسط","القيمة المستحقه","تاريخ الاستحقاق","القيمة المحصله","تاريخ السداد","رقم وصل التحصيل","رقم وصل الرئيسى","اسم المحصل","رصيد القسط","رصيد العميل","رقم القسط","القيمة المستحقه","تاريخ الاستحقاق","القيمة المحصله","تاريخ السداد","رقم وصل التحصيل","رقم وصل الرئيسى","اسم المحصل","رصيد القسط","رصيد العميل","رقم القسط","القيمة المستحقه","تاريخ الاستحقاق","القيمة المحصله","تاريخ السداد","رقم وصل التحصيل","رقم وصل الرئيسى","اسم المحصل","رصيد القسط","رصيد العميل","رقم القسط","القيمة المستحقه","تاريخ الاستحقاق","القيمة المحصله","تاريخ السداد","رقم وصل التحصيل","رقم وصل الرئيسى","اسم المحصل","رصيد القسط","رصيد العميل","رقم القسط","القيمة المستحقه","تاريخ الاستحقاق","القيمة المحصله","تاريخ السداد","رقم وصل التحصيل","رقم وصل الرئيسى","اسم المحصل","رصيد القسط","رصيد العميل","ملاحظات","ملاحظات","ملاحظات","ملاحظات","ملاحظات","ملاحظات","ملاحظات","ملاحظات"]
[null,"2014-01-01","فرع 1",null,null,null,"Code-001","Name -01",null,null,1,200,50,150,"إيجار",null,null,100,"2014-02-26",100,null,null,null,null,{"$f":"R6-T6","v":0},null,null,100,"2014-03-26",100,null,null,null,null,{"$f":"AB6-AD6","v":0},null,null,100,"2014-04-26",100,null,null,null,null,{"$f":"AL6-AN6","v":0},null,null,100,"2014-05-26",100,null,null,null,null,{"$f":"AV6-AX6","v":0},null,null,100,"2014-06-26",100,null,null,null,null,{"$f":"BF6-BH6","v":0},null,null,100,"2014-07-26",100,null,null,null,null,{"$f":"BP6-BR6","v":0},null,null,100,"2014-08-26",100,null,null,null,null,{"$f":"BZ6-CB6","v":0},null,null,100,"2014-09-26",100,null,null,null,null,{"$f":"CJ6-CL6","v":0},null,null,100,"2014-10-26",100,null,null,null,null,{"$f":"CT6-CV6","v":0},null,null,100,"2014-11-26",100,null,null,null,null,{"$f":"DD6-DF6","v":0},null,null,100,"2014-12-26",100,null,null,null,null,{"$f":"DN6-DP6","v":0},null,null,100,"2015-01-26",100,null,null,null,null,{"$f":"DX6-DZ6","v":0}]
[null,"2014-01-02","فرع 2",null,null,null,"Code-002","Name -02",null,null,4,1000,300,700,"بيع",null,null,125,"2014-03-15",null,null,null,null,null,{"$f":"R7-T7","v":125},null,null,125,"2014-04-15",null,null,null,null,null,125,null,null,125,"2014-05-15",null,null,null,null,null,125,null,null,125,"2014-06-15",null,null,null,null,null,125,null,null,125,"2014-07-15",null,null,null,null,null,125,null,null,125,"2014-08-15",null,null,null,null,null,125,null,null,125,"2014-09-15",null,null,null,null,null,125,null,null,125,"2014-10-15",null,null,null,null,null,125,null,null,125,"2014-11-15",null,null,null,null,null,125,null,null,125,"2014-12-15",null,null,null,null,null,125,null,null,125,"2015-01-15",null,null,null,null,null,125,null,null,125,"2015-02-15",null,null,null,null,null,125]
[null,"2014-06-10","فرع 4",null,null,null,"Code-003","Name -03",null,null,8,1250,500,750,"استثمار",null,null,null,"2014-03-24",null,null,null,null,null,0,null,null,null,"2014-04-24",null,null,null,null,null,0,null,null,null,"2014-05-24",null,null,null,null,null,0,null,null,null,"2014-06-24",null,null,null,null,null,0,null,null,null,"2014-07-24",null,null,null,null,null,0,null,null,null,"2014-08-24",null,null,null,null,null,0,null,null,null,"2014-09-24",null,null,null,null,null,0,null,null,null,"2014-10-24",null,null,null,null,null,0,null,null,null,"2014-11-24",null,null,null,null,null,0,null,null,null,"2014-12-24",null,null,null,null,null,0,null,null,null,"2015-01-24",null,null,null,null,null,0,null,null,null,"2015-02-24",null,null,null,null,null,0]
[null,"2014-06-10","فرع 5",null,null,null,"Code-004","Name -04",null,null,7,333,33,300,null,null,null,null,"2014-03-27",null,null,null,null,null,0,null,null,null,"2014-04-27",null,null,null,null,null,0,null,null,null,"2014-05-27",null,null,null,null,null,0,null,null,null,"2014-06-27",null,null,null,null,null,0,null,null,null,"2014-07-27",null,null,null,null,null,0,null,null,null,"2014-08-27",null,null,null,null,null,0,null,null,null,"2014-09-27",null,null,null,null,null,0,null,null,null,"2014-10-27",null,null,null,null,null,0,null,null,null,"2014-11-27",null,null,null,null,null,0,null,null,null,"2014-12-27",null,null,null,null,null,0,null,null,null,"2015-01-27",null,null,null,null,null,0,null,null,null,"2015-02-27",null,null,null,null,null,0]
[null,null,null,null,null,null,null,null,null,null,null,null,null,null,null,null,null,null,null,null,null,null,null,null,0,null,null,null,null,null,null,null,null,null,0,null,null,null,null,null,null,null,null,null,0,null,null,null,null,null,null,null,null,null,0,null,null,null,null,null,null,null,null,null,0,null,null,null,null,null,null,null,null,null,0,null,null,null,null,null,null,null,null,null,0,null,null,null,null,null,null,null,null,null,0,null,null,null,null,null,null,null,null,null,0,null,null,null,null,null,null,null,null,null,0,null,null,null,null,null,null,null,null,null,0,null,null,null,null,null,null,null,null,null,0]
[null,null,null,null,null,null,null,null,null,null,null,null,null,null,null,null,null,null,null,null,null,null,null,null,0,null,null,null,null,null,null,null,null,null,0,null,null,null,null,null,null,null,null,null,0,null,null,null,null,null,null,null,null,null,0,null,null,null,null,null,null,null,null,null,0,null,null,null,null,null,null,null,null,null,0,null,null,null,null,null,null,null,null,null,0,null,null,null,null,null,null,null,null,null,0,null,null,null,null,null,null,null,null,null,0,null,null,null,null,null,null,null,null,null,0,null,null,null,null,null,null,null,null,null,0,null,null,null,null,null,null,null,null,null,0]
[null,null,null,null,null,null,null,null,null,null,null,null,null,null,null,null,null,null,null,null,null,null,null,null,0,null,null,null,null,null,null,null,null,null,0,null,null,null,null,null,null,null,null,null,0,null,null,null,null,null,null,null,null,null,0,null,null,null,null,null,null,null,null,null,0,null,null,null,null,null,null,null,null,null,0,null,null,null,null,null,null,null,null,null,0,null,null,null,null,null,null,null,null,null,0,null,null,null,null,null,null,null,null,null,0,null,null,null,null,null,null,null,null,null,0,null,null,null,null,null,null,null,null,null,0,null,null,null,null,null,null,null,null,null,0]
[null,null,null,null,null,null,null,null,null,null,null,null,null,null,null,null,null,null,null,null,null,null,null,null,0,null,null,null,null,null,null,null,null,null,0,null,null,null,null,null,null,null,null,null,0,null,null,null,null,null,null,null,null,null,0,null,null,null,null,null,null,null,null,null,0,null,null,null,null,null,null,null,null,null,0,null,null,null,null,null,null,null,null,null,0,null,null,null,null,null,null,null,null,null,0,null,null,null,null,null,null,null,null,null,0,null,null,null,null,null,null,null,null,null,0,null,null,null,null,null,null,null,null,null,0,null,null,null,null,null,null,null,null,null,0]
[null,null,null,null,null,null,null,null,null,null,null,null,null,null,null,null,null,null,null,null,null,null,null,null,0,null,null,null,null,null,null,null,null,null,0,null,null,null,null,null,null,null,null,null,0,null,null,null,null,null,null,null,null,null,0,null,null,null,null,null,null,null,null,null,0,null,null,null,null,null,null,null,null,null,0,null,null,null,null,null,null,null,null,null,0,null,null,null,null,null,null,null,null,null,0,null,null,null,null,null,null,null,null,null,0,null,null,null,null,null,null,null,null,null,0,null,null,null,null,null,null,null,null,null,0,null,null,null,null,null,null,null,null,null,0]
[null,null,null,null,null,null,null,null,null,null,null,null,null,null,null,null,null,null,null,null,null,null,null,null,0,null,null,null,null,null,null,null,null,null,0,null,null,null,null,null,null,null,null,null,0,null,null,null,null,null,null,null,null,null,0,null,null,null,null,null,null,null,null,null,0,null,null,null,null,null,null,null,null,null,0,null,null,null,null,null,null,null,null,null,0,null,null,null,null,null,null,null,null,null,0,null,null,null,null,null,null,null,null,null,0,null,null,null,null,null,null,null,null,null,0,null,null,null,null,null,null,null,null,null,0,null,null,null,null,null,null,null,null,null,0]
[null,null,null,null,null,null,null,null,null,null,null,null,null,null,null,null,null,null,null,null,null,null,null,null,0,null,null,null,null,null,null,null,null,null,0,null,null,null,null,null,null,null,null,null,0,null,null,null,null,null,null,null,null,null,0,null,null,null,null,null,null,null,null,null,0,null,null,null,null,null,null,null,null,null,0,null,null,null,null,null,null,null,null,null,0,null,null,null,null,null,null,null,null,null,0,null,null,null,null,null,null,null,null,null,0,null,null,null,null,null,null,null,null,null,0,null,null,null,null,null,null,null,null,null,0,null,null,null,null,null,null,null,null,null,0]
[null,null,null,null,null,null,null,null,null,null,null,null,null,null,null,null,null,null,null,null,null,null,null,null,0,null,null,null,null,null,null,null,null,null,0,null,null,null,null,null,null,null,null,null,0,null,null,null,null,null,null,null,null,null,0,null,null,null,null,null,null,null,null,null,0,null,null,null,null,null,null,null,null,null,0,null,null,null,null,null,null,null,null,null,0,null,null,null,null,null,null,null,null,null,0,null,null,null,null,null,null,null,null,null,0,null,null,null,null,null,null,null,null,null,0,null,null,null,null,null,null,null,null,null,0,null,null,null,null,null,null,null,null,null,0]
[null,null,null,null,null,null,null,null,null,null,null,null,null,null,null,null,null,null,null,null,null,null,null,null,0,null,null,null,null,null,null,null,null,null,0,null,null,null,null,null,null,null,null,null,0,null,null,null,null,null,null,null,null,null,0,null,null,null,null,null,null,null,null,null,0,null,null,null,null,null,null,null,null,null,0,null,null,null,null,null,null,null,null,null,0,null,null,null,null,null,null,null,null,null,0,null,null,null,null,null,null,null,null,null,0,null,null,null,null,null,null,null,null,null,0,null,null,null,null,null,null,null,null,null,0,null,null,null,null,null,null,null,null,null,0]
[null,null,null,null,null,null,null,null,null,null,null,null,null,null,null,null,null,null,null,null,null,null,null,null,0,null,null,null,null,null,null,null,null,null,0,null,null,null,null,null,null,null,null,null,0,null,null,null,null,null,null,null,null,null,0,null,null,null,null,null,null,null,null,null,0,null,null,null,null,null,null,null,null,null,0,null,null,null,null,null,null,null,null,null,0,null,null,null,null,null,null,null,null,null,0,null,null,null,null,null,null,null,null,null,0,null,null,null,null,null,null,null,null,null,0,null,null,null,null,null,null,null,null,null,0,null,null,null,null,null,null,null,null,null,0]
[null,null,null,null,null,null,null,null,null,null,null,null,null,null,null,null,null,null,null,null,null,null,null,null,0,null,null,null,null,null,null,null,null,null,0,null,null,null,null,null,null,null,null,null,0,null,null,null,null,null,null,null,null,null,0,null,null,null,null,null,null,null,null,null,0,null,null,null,null,null,null,null,null,null,0,null,null,null,null,null,null,null,null,null,0,null,null,null,null,null,null,null,null,null,0,null,null,null,null,null,null,null,null,null,0,null,null,null,null,null,null,null,null,null,0,null,null,null,null,null,null,null,null,null,0,null,null,null,null,null,null,null,null,null,0]
[null,null,null,null,null,null,null,null,null,null,null,null,null,null,null,null,null,null,null,null,null,null,null,null,0,null,null,null,null,null,null,null,null,null,0,null,null,null,null,null,null,null,null,null,0,null,null,null,null,null,null,null,null,null,0,null,null,null,null,null,null,null,null,null,0,null,null,null,null,null,null,null,null,null,0,null,null,null,null,null,null,null,null,null,0,null,null,null,null,null,null,null,null,null,0,null,null,null,null,null,null,null,null,null,0,null,null,null,null,null,null,null,null,null,0,null,null,null,null,null,null,null,null,null,0,null,null,null,null,null,null,null,null,null,0]

{"sheet":"فرع 1","index":3,"n_rows":6,"n_cols":35,"rows_kept":6,"cut":false,"hidden":false,"merged":[]}
[]
[]
[]
[]
[null,"التاريخ","الفرع","مستند التوريد","نوع المستند","ايصال تحصيل الفرع","كود العميل","اسم العميل","تصنيف الصنف","اسم الصنف","نظام البيع ","العدد","مبلغ التعاقد","المقدم ","الباقى","سعر الوحدة","فروقات وخصومات","بيانات الخصم","نوع العقد","رقم العقد","اسم البائع","اسم فنى التركيب","اسم القسم البائع","الشهر","ملاحظات","قيمة العربون","العدد2","نوع الجهاز","تاريخ التركيب","ملاحظات العربون","قيمة الارتجاع","العدد4","اسم الصنف المرتجع","تاريخ الارتجاع","ملاحظات المترجعات"]
[null,"2014-01-01","فرع 1",null,null,null,null,null,null,null,null,1,200,50,150]

{"sheet":"فرع 2","index":4,"n_rows":6,"n_cols":35,"rows_kept":6,"cut":false,"hidden":false,"merged":[]}
[]
[]
[]
[]
[null,"التاريخ","الفرع","مستند التوريد","نوع المستند","ايصال تحصيل الفرع","كود العميل","اسم العميل","تصنيف الصنف","اسم الصنف","نظام البيع ","العدد","مبلغ التعاقد","المقدم ","الباقى","سعر الوحدة","فروقات وخصومات","بيانات الخصم","نوع العقد","رقم العقد","اسم البائع","اسم فنى التركيب","اسم القسم البائع","الشهر","ملاحظات","قيمة العربون","العدد2","نوع الجهاز","تاريخ التركيب","ملاحظات العربون","قيمة الارتجاع","العدد4","اسم الصنف المرتجع","تاريخ الارتجاع","ملاحظات المترجعات"]
[null,"2014-01-02","فرع 2",null,null,null,null,null,null,null,null,4,1000,300,700]

{"sheet":"فرع 3","index":5,"n_rows":6,"n_cols":35,"rows_kept":6,"cut":false,"hidden":false,"merged":[]}
[]
[]
[]
[]
[null,"التاريخ","الفرع","مستند التوريد","نوع المستند","ايصال تحصيل الفرع","كود العميل","اسم العميل","تصنيف الصنف","اسم الصنف","نظام البيع ","العدد","مبلغ التعاقد","المقدم ","الباقى","سعر الوحدة","فروقات وخصومات","بيانات الخصم","نوع العقد","رقم العقد","اسم البائع","اسم فنى التركيب","اسم القسم البائع","الشهر","ملاحظات","قيمة العربون","العدد2","نوع الجهاز","تاريخ التركيب","ملاحظات العربون","قيمة الارتجاع","العدد4","اسم الصنف المرتجع","تاريخ الارتجاع","ملاحظات المترجعات"]
[null,null,"فرع 3",null,null,null,null,null,null,null,null,5,1000,1000,0]

{"sheet":"فرع 4","index":6,"n_rows":6,"n_cols":35,"rows_kept":6,"cut":false,"hidden":false,"merged":[]}
[]
[]
[]
[]
[null,"التاريخ","الفرع","مستند التوريد","نوع المستند","ايصال تحصيل الفرع","كود العميل","اسم العميل","تصنيف الصنف","اسم الصنف","نظام البيع ","العدد","مبلغ التعاقد","المقدم ","الباقى","سعر الوحدة","فروقات وخصومات","بيانات الخصم","نوع العقد","رقم العقد","اسم البائع","اسم فنى التركيب","اسم القسم البائع","الشهر","ملاحظات","قيمة العربون","العدد2","نوع الجهاز","تاريخ التركيب","ملاحظات العربون","قيمة الارتجاع","العدد4","اسم الصنف المرتجع","تاريخ الارتجاع","ملاحظات المترجعات"]
[null,"2014-06-10","فرع 4",null,null,null,null,null,null,null,null,8,1250,500,750]

{"sheet":"فرع 5","index":7,"n_rows":6,"n_cols":35,"rows_kept":6,"cut":false,"hidden":false,"merged":[]}
[]
[]
[]
[]
[null,"التاريخ","الفرع","مستند التوريد","نوع المستند","ايصال تحصيل الفرع","كود العميل","اسم العميل","تصنيف الصنف","اسم الصنف","نظام البيع ","العدد","مبلغ التعاقد","المقدم ","الباقى","سعر الوحدة","فروقات وخصومات","بيانات الخصم","نوع العقد","رقم العقد","اسم البائع","اسم فنى التركيب","اسم القسم البائع","الشهر","ملاحظات","قيمة العربون","العدد2","نوع الجهاز","تاريخ التركيب","ملاحظات العربون","قيمة الارتجاع","العدد4","اسم الصنف المرتجع","تاريخ الارتجاع","ملاحظات المترجعات"]
[null,"2014-06-10","فرع 5",null,null,null,null,null,null,null,null,7,333,33,300]

{"sheet":"فرع 6","index":8,"n_rows":5,"n_cols":35,"rows_kept":5,"cut":false,"hidden":false,"merged":[]}
[]
[]
[]
[]
[null,"التاريخ","الفرع","مستند التوريد","نوع المستند","ايصال تحصيل الفرع","كود العميل","اسم العميل","تصنيف الصنف","اسم الصنف","نظام البيع ","العدد","مبلغ التعاقد","المقدم ","الباقى","سعر الوحدة","فروقات وخصومات","بيانات الخصم","نوع العقد","رقم العقد","اسم البائع","اسم فنى التركيب","اسم القسم البائع","الشهر","ملاحظات","قيمة العربون","العدد2","نوع الجهاز","تاريخ التركيب","ملاحظات العربون","قيمة الارتجاع","العدد4","اسم الصنف المرتجع","تاريخ الارتجاع","ملاحظات المترجعات"]

{"sheet":"فرع 7","index":9,"n_rows":5,"n_cols":35,"rows_kept":5,"cut":false,"hidden":false,"merged":[]}
[]
[]
[]
[]
[null,"التاريخ","الفرع","مستند التوريد","نوع المستند","ايصال تحصيل الفرع","كود العميل","اسم العميل","تصنيف الصنف","اسم الصنف","نظام البيع ","العدد","مبلغ التعاقد","المقدم ","الباقى","سعر الوحدة","فروقات وخصومات","بيانات الخصم","نوع العقد","رقم العقد","اسم البائع","اسم فنى التركيب","اسم القسم البائع","الشهر","ملاحظات","قيمة العربون","العدد2","نوع الجهاز","تاريخ التركيب","ملاحظات العربون","قيمة الارتجاع","العدد4","اسم الصنف المرتجع","تاريخ الارتجاع","ملاحظات المترجعات"]

{"sheet":"تقرير الاقساط","index":10,"n_rows":133,"n_cols":15,"rows_kept":133,"cut":false,"hidden":false,"merged":[[4,2,4,3],[6,2,6,3],[8,7,8,13],[8,4,8,6],[2,5,4,8]]}
[null,"احتاج عمل تقرير من صفحة المبيعات الاقساط استطيع عمل تقرير منه عن الاقساط المستحقه والاقساط المسدده والاقساط المتاخره خلال فتره معينه تبدا من    /    /    20  الى   /   /     20"]
[]
[null,"فترة التقرير ",null,null,null,"اعلم ان طلبى هذا ثقيل وان كان وقتكم يسمح بذلك . "]
[]
[null,"بداية الفتره","2014-04-01"]
[]
[null,"نهاية الفتره","2014-05-30"]
[]
[null,null,null,null,"الاقساط المستحقه",null,null,"الاقساط المسدده"]
[]
[null,"كود العميل","اسم العميل","نوع القسط","رقم القسط","قيمة القسط","تاريخ القسط","القيمة المحصله","تاريخ السداد","رقم وصل التحصيل","رقم وصل الرئيسى","اسم المحصل","رصيد القسط","رصيد العميل "]
[null,null,null,null,null,null,null,null,null,null,null,null,null,null,{"$f":"IF(ISNUMBER(M12),IF(M12<=0,\"تم السداد\",\"متاخر/لم يحصل\"),\"\")","v":""}]
[null,null,null,null,null,null,null,null,null,null,null,null,null,null,{"$f":"IF(ISNUMBER(M13),IF(M13<=0,\"تم السداد\",\"متاخر/لم يحصل\"),\"\")","v":""}]
[null,null,null,null,null,null,null,null,null,null,null,null,null,null,""]
[null,null,null,null,null,null,null,null,null,null,null,null,null,null,""]
[null,null,null,null,null,null,null,null,null,null,null,null,null,null,""]
[null,null,null,null,null,null,null,null,null,null,null,null,null,null,""]
[null,null,null,null,null,null,null,null,null,null,null,null,null,null,""]
[null,null,null,null,null,null,null,null,null,null,null,null,null,null,""]
[null,null,null,null,null,null,null,null,null,null,null,null,null,null,""]
[null,null,null,null,null,null,null,null,null,null,null,null,null,null,""]
[null,null,null,null,null,null,null,null,null,null,null,null,null,null,""]
[null,null,null,null,null,null,null,null,null,null,null,null,null,null,""]
[null,null,null,null,null,null,null,null,null,null,null,null,null,null,""]
[null,null,null,null,null,null,null,null,null,null,null,null,null,null,""]
[null,null,null,null,null,null,null,null,null,null,null,null,null,null,""]
[null,null,null,null,null,null,null,null,null,null,null,null,null,null,""]
[null,null,null,null,null,null,null,null,null,null,null,null,null,null,""]
[null,null,null,null,null,null,null,null,null,null,null,null,null,null,""]
[null,null,null,null,null,null,null,null,null,null,null,null,null,null,""]
[null,null,null,null,null,null,null,null,null,null,null,null,null,null,""]
[null,null,null,null,null,null,null,null,null,null,null,null,null,null,""]
[null,null,null,null,null,null,null,null,null,null,null,null,null,null,""]
[null,null,null,null,null,null,null,null,null,null,null,null,null,null,""]
[null,null,null,null,null,null,null,null,null,null,null,null,null,null,""]
[null,null,null,null,null,null,null,null,null,null,null,null,null,null,""]
[null,null,null,null,null,null,null,null,null,null,null,null,null,null,""]
[null,null,null,null,null,null,null,null,null,null,null,null,null,null,""]
[null,null,null,null,null,null,null,null,null,null,null,null,null,null,""]
[null,null,null,null,null,null,null,null,null,null,null,null,null,null,""]
[null,null,null,null,null,null,null,null,null,null,null,null,null,null,""]
[null,null,null,null,null,null,null,null,null,null,null,null,null,null,""]
[null,null,null,null,null,null,null,null,null,null,null,null,null,null,""]
[null,null,null,null,null,null,null,null,null,null,null,null,null,null,""]
[null,null,null,null,null,null,null,null,null,null,null,null,null,null,""]
[null,null,null,null,null,null,null,null,null,null,null,null,null,null,""]
[null,null,null,null,null,null,null,null,null,null,null,null,null,null,""]
[null,null,null,null,null,null,null,null,null,null,null,null,null,null,""]
[null,null,null,null,null,null,null,null,null,null,null,null,null,null,""]
[null,null,null,null,null,null,null,null,null,null,null,null,null,null,""]
[null,null,null,null,null,null,null,null,null,null,null,null,null,null,""]
[null,null,null,null,null,null,null,null,null,null,null,null,null,null,""]
[null,null,null,null,null,null,null,null,null,null,null,null,null,null,""]
[null,null,null,null,null,null,null,null,null,null,null,null,null,null,""]
[null,null,null,null,null,null,null,null,null,null,null,null,null,null,""]
[null,null,null,null,null,null,null,null,null,null,null,null,null,null,""]
[null,null,null,null,null,null,null,null,null,null,null,null,null,null,""]
[null,null,null,null,null,null,null,null,null,null,null,null,null,null,""]
[null,null,null,null,null,null,null,null,null,null,null,null,null,null,""]
[null,null,null,null,null,null,null,null,null,null,null,null,null,null,""]
[null,null,null,null,null,null,null,null,null,null,null,null,null,null,""]
[null,null,null,null,null,null,null,null,null,null,null,null,null,null,""]
[null,null,null,null,null,null,null,null,null,null,null,null,null,null,""]
[null,null,null,null,null,null,null,null,null,null,null,null,null,null,""]
[null,null,null,null,null,null,null,null,null,null,null,null,null,null,""]
[null,null,null,null,null,null,null,null,null,null,null,null,null,null,""]
[null,null,null,null,null,null,null,null,null,null,null,null,null,null,""]
[null,null,null,null,null,null,null,null,null,null,null,null,null,null,""]
[null,null,null,null,null,null,null,null,null,null,null,null,null,null,""]
[null,null,null,null,null,null,null,null,null,null,null,null,null,null,""]
[null,null,null,null,null,null,null,null,null,null,null,null,null,null,""]
[null,null,null,null,null,null,null,null,null,null,null,null,null,null,""]
[null,null,null,null,null,null,null,null,null,null,null,null,null,null,""]
[null,null,null,null,null,null,null,null,null,null,null,null,null,null,""]
[null,null,null,null,null,null,null,null,null,null,null,null,null,null,""]
[null,null,null,null,null,null,null,null,null,null,null,null,null,null,""]
[null,null,null,null,null,null,null,null,null,null,null,null,null,null,{"$f":"IF(ISNUMBER(M77),IF(M77<=0,\"تم السداد\",\"متاخر/لم يحصل\"),\"\")","v":""}]
[null,null,null,null,null,null,null,null,null,null,null,null,null,null,""]
[null,null,null,null,null,null,null,null,null,null,null,null,null,null,""]
[null,null,null,null,null,null,null,null,null,null,null,null,null,null,""]
[null,null,null,null,null,null,null,null,null,null,null,null,null,null,""]
[null,null,null,null,null,null,null,null,null,null,null,null,null,null,""]
[null,null,null,null,null,null,null,null,null,null,null,null,null,null,""]
[null,null,null,null,null,null,null,null,null,null,null,null,null,null,""]
[null,null,null,null,null,null,null,null,null,null,null,null,null,null,""]
[null,null,null,null,null,null,null,null,null,null,null,null,null,null,""]
[null,null,null,null,null,null,null,null,null,null,null,null,null,null,""]
[null,null,null,null,null,null,null,null,null,null,null,null,null,null,""]
[null,null,null,null,null,null,null,null,null,null,null,null,null,null,""]
[null,null,null,null,null,null,null,null,null,null,null,null,null,null,""]
[null,null,null,null,null,null,null,null,null,null,null,null,null,null,""]
[null,null,null,null,null,null,null,null,null,null,null,null,null,null,""]
[null,null,null,null,null,null,null,null,null,null,null,null,null,null,""]
[null,null,null,null,null,null,null,null,null,null,null,null,null,null,""]
[null,null,null,null,null,null,null,null,null,null,null,null,null,null,""]
[null,null,null,null,null,null,null,null,null,null,null,null,null,null,""]
[null,null,null,null,null,null,null,null,null,null,null,null,null,null,""]
[null,null,null,null,null,null,null,null,null,null,null,null,null,null,""]
[null,null,null,null,null,null,null,null,null,null,null,null,null,null,""]
[null,null,null,null,null,null,null,null,null,null,null,null,null,null,""]
[null,null,null,null,null,null,null,null,null,null,null,null,null,null,""]
[null,null,null,null,null,null,null,null,null,null,null,null,null,null,""]
[null,null,null,null,null,null,null,null,null,null,null,null,null,null,""]
[null,null,null,null,null,null,null,null,null,null,null,null,null,null,""]
[null,null,null,null,null,null,null,null,null,null,null,null,null,null,""]
[null,null,null,null,null,null,null,null,null,null,null,null,null,null,""]
[null,null,null,null,null,null,null,null,null,null,null,null,null,null,""]
[null,null,null,null,null,null,null,null,null,null,null,null,null,null,""]
[null,null,null,null,null,null,null,null,null,null,null,null,null,null,""]
[null,null,null,null,null,null,null,null,null,null,null,null,null,null,""]
[null,null,null,null,null,null,null,null,null,null,null,null,null,null,""]
[null,null,null,null,null,null,null,null,null,null,null,null,null,null,""]
[null,null,null,null,null,null,null,null,null,null,null,null,null,null,""]
[null,null,null,null,null,null,null,null,null,null,null,null,null,null,""]
[null,null,null,null,null,null,null,null,null,null,null,null,null,null,""]
[null,null,null,null,null,null,null,null,null,null,null,null,null,null,""]
[null,null,null,null,null,null,null,null,null,null,null,null,null,null,""]
[null,null,null,null,null,null,null,null,null,null,null,null,null,null,""]
[null,null,null,null,null,null,null,null,null,null,null,null,null,null,""]
[null,null,null,null,null,null,null,null,null,null,null,null,null,null,""]
[null,null,null,null,null,null,null,null,null,null,null,null,null,null,""]
[null,null,null,null,null,null,null,null,null,null,null,null,null,null,""]
[null,null,null,null,null,null,null,null,null,null,null,null,null,null,""]
[null,null,null,null,null,null,null,null,null,null,null,null,null,null,""]
[null,null,null,null,null,null,null,null,null,null,null,null,null,null,""]
[null,null,null,null,null,null,null,null,null,null,null,null,null,null,""]
[null,null,null,null,null,null,null,null,null,null,null,null,null,null,""]
[null,null,null,null,null,null,null,null,null,null,null,null,null,null,""]
[null,null,null,null,null,null,null,null,null,null,null,null,null,null,""]
[null,null,null,null,null,null,null,null,null,null,null,null,null,null,""]
[null,null,null,null,null,null,null,null,null,null,null,null,null,null,""]
[null,null,null,null,null,null,null,null,null,null,null,null,null,null,""]
[null,null,null,null,null,null,null,null,null,null,null,null,null,null,""]